bitfinex/quotes_SOLUSD_20250508
["timestamp","ask_amount","ask_price","bid_price","bid_amount"]
[1746662402796,18.64964886,147.53,147.42,1.75216157]
[1746662405289,136.8,147.51,147.43,15.98]
[1746662405482,136.8,147.53,147.44,0.14216157]
[1746662407798,160.52398833,147.53,147.45,6.78195998]
[1746662411396,143.57828238,147.53,147.47,0.14216157]
[1746662412783,143.57828238,147.53,147.47,6.92304824]
[1746662413087,143.57828238,147.53,147.47,0.14216157]
[1746662414406,23.71765514,147.57,147.49,0.14216157]
[1746662417407,23.71765514,147.57,147.49,6.92218075]
[1746662417585,23.71765514,147.57,147.5,1.5903]
[1746662418812,6.77644507,147.57,147.5,1.5903]
[1746662419302,6.77644507,147.57,147.5,8.3696735]
[1746662419704,6.77506775,147.6,147.51,0.14216157]
[1746662420006,6.77506775,147.6,147.51,18.79181043]
[1746662421009,23.70470707,147.65,147.53,0.14216157]
[1746662421305,136.8,147.64,147.55,0.14216157]
[1746662421493,6.77369098,147.63,147.56,6.77690431]
[1746662424515,6.77369098,147.63,147.56,12.26720573]
[1746662424817,6.77369098,147.63,147.56,6.77690431]
[1746662425008,6.77369098,147.63,147.55,6.9193812]
[1746662429607,23.70791844,147.63,147.54,21.47770968]
[1746662429832,23.70791844,147.63,147.55,0.14216157]
[1746662430994,6.77369098,147.63,147.56,6.77690431]
[1746662431192,6.77369098,147.63,147.57,6.23156157]
[1746662431898,143.57342562,147.64,147.57,6.23156157]
[1746662432500,6.77231477,147.66,147.57,6.23156157]
[1746662432700,6.77231477,147.66,147.59,0.14216157]
[1746662432899,6.77231477,147.66,147.6,15.98]
[1746662434425,6.77231477,147.66,147.61,0.14216157]
[1746662438225,6.77231477,147.66,147.61,6.91672856]
[1746662442225,6.77231477,147.66,147.61,8.56732856]
[1746662446830,23.69835646,147.69,147.61,8.56732856]
[1746662448229,6.77093912,147.69,147.61,8.56732856]
[1746662448428,6.77093912,147.69,147.63,0.14216157]
[1746662448933,6.77093912,147.69,147.64,6.77323218]
[1746662450438,6.77093912,147.69,147.63,6.91564273]
[1746662450633,23.69828694,147.69,147.63,0.14216157]
[1746662450938,23.70310171,147.66,147.57,17.6023]
[1746662451115,136.8,147.65,147.58,0.14216157]
[1746662451315,136.8,147.65,147.57,17.6023]
[1746662452373,136.8,147.65,147.58,0.14216157]
[1746662453122,6.77323218,147.64,147.58,0.14216157]
[1746662455845,23.70631264,147.64,147.58,0.14216157]
[1746662462425,136.8,147.63,147.58,0.14216157]
[1746662464350,6.77414984,147.62,147.58,0.14216157]
[1746662470947,6.77414984,147.62,147.57,15.96]
[1746662471637,23.70952445,147.62,147.57,15.96]
[1746662474159,23.70952445,147.62,147.56,0.14216157]
[1746662475041,23.70952445,147.62,147.57,0.14216157]
[1746662476967,6.77414984,147.62,147.57,6.91851595]
[1746662477165,6.77414984,147.62,147.56,6.77672563]
[1746662477365,6.77414984,147.62,147.57,0.14216157]
[1746662484274,6.77414984,147.62,147.56,0.14216157]
[1746662484942,23.70952445,147.62,147.56,0.14216157]
[1746662488385,23.71273712,147.6,147.53,1.5661]
[1746662488551,23.71273712,147.6,147.54,0.14216157]
[1746662488874,23.71273712,147.6,147.53,1.5661]
[1746662489182,23.71273712,147.6,147.54,0.14216157]
[1746662493073,136.8,147.59,147.54,0.14216157]
[1746662493579,136.8,147.58,147.52,15.96]
[1746662494664,6.77644507,147.57,147.52,15.96]
[1746662495671,23.71755776,147.57,147.52,15.96]
[1746662495893,136.8,147.56,147.5,1.5139]
[1746662496179,136.8,147.56,147.49,0.14216157]
[1746662496355,162.8,147.55,147.46,1.6142]
[1746662496673,6.77828238,147.53,147.46,1.6142]
[1746662497056,23.72398833,147.53,147.46,1.6142]
[1746662497481,23.72398833,147.53,147.47,0.14216157]
[1746662501379,136.8,147.52,147.47,0.14216157]
[1746662502982,6.77920141,147.51,147.47,0.14216157]
[1746662509780,23.72720493,147.51,147.4,33.08062412]
[1746662509986,23.72720493,147.51,147.43,26.0]
[1746662509987,136.8,147.5,147.43,26.0]
[1746662510294,136.8,147.5,147.46,0.14216157]
[1746662511682,143.57986348,147.5,147.46,0.14216157]
[1746662513289,143.57986348,147.5,147.45,1.5474]
[1746662513490,143.57986348,147.5,147.46,0.14216157]
[1746662514491,160.52901602,147.5,147.46,0.14216157]
[1746662514792,143.57986348,147.5,147.46,0.14216157]
[1746662524201,153.74462055,147.54,147.48,0.14216157]
[1746662525208,6.77828238,147.53,147.48,0.14216157]
[1746662526189,6.77828238,147.53,147.48,6.92274144]
[1746662527908,136.8,147.54,147.48,6.92274144]
[1746662528103,136.8,147.54,147.48,23.04274144]
[1746662528297,6.77761812,147.55,147.48,23.04274144]
[1746662528502,6.77644507,147.57,147.5,27.72636157]
[1746662531312,6.77644507,147.57,147.5,34.50573744]
[1746662532219,6.77644507,147.57,147.52,0.14216157]
[1746662532823,6.77644507,147.57,147.52,6.92083983]
[1746662537010,6.77644507,147.57,147.52,0.14216157]
[1746662538922,6.77644507,147.57,147.52,6.92086379]
[1746662541913,136.8,147.58,147.53,26.0]
[1746662542300,136.8,147.58,147.56,0.14216157]
[1746662542499,6.77574303,147.59,147.56,0.14216157]
[1746662543824,6.77460876,147.61,147.56,0.14216157]
[1746662548539,32.77460876,147.61,147.54,0.14216157]
[1746662548841,155.44964886,147.6,147.53,16.06]
[1746662549139,44.64964886,147.58,147.49,16.06]
[1746662549440,18.64964886,147.56,147.49,16.06]
[1746662549616,18.64964886,147.56,147.47,6.7808458]
[1746662549617,18.64964886,147.56,147.48,0.14216157]
[1746662549819,6.77782296,147.54,147.47,32.7808458]
[1746662550020,6.77782296,147.54,147.48,0.14216157]
[1746662558949,23.72238036,147.54,147.48,0.14216157]
[1746662561340,136.8,147.53,147.48,0.14216157]
[1746662563651,23.72559652,147.52,147.46,1.5227]
[1746662563951,23.72559652,147.52,147.45,42.06]
[1746662566053,23.72559652,147.52,147.45,16.06]
[1746662566250,155.44964886,147.51,147.45,16.06]
[1746662566443,136.8,147.5,147.45,16.06]
[1746662566642,136.8,147.5,147.44,0.14216157]
[1746662567360,136.8,147.49,147.43,1.5094]
[1746662567655,136.8,147.49,147.44,26.0]
[1746662568357,6.78058041,147.48,147.44,26.0]
[1746662568570,16.94685466,147.52,147.45,0.14216157]
[1746662568738,7.548,147.54,147.45,0.14216157]
[1746662568739,143.57920141,147.51,147.45,0.14216157]
[1746662569248,136.8,147.51,147.45,0.14216157]
[1746662570170,136.8,147.51,147.46,6.78150006]
[1746662572061,143.57949009,147.51,147.47,0.14216157]
[1746662574438,143.57949009,147.51,147.45,6.92392021]
[1746662574841,143.57949009,147.51,147.45,0.14216157]
[1746662576261,143.57949009,147.51,147.45,6.92406494]
[1746662576853,160.52749361,147.51,147.45,0.14216157]
[1746662577158,143.57949009,147.51,147.45,0.14216157]
[1746662577367,136.8,147.51,147.45,6.92402314]
[1746662578059,6.77893605,147.52,147.45,6.92402314]
[1746662578239,6.77847522,147.53,147.47,0.14216157]
[1746662578846,6.77847522,147.53,147.49,0.14216157]
[1746662580370,136.8,147.54,147.49,6.92224836]
[1746662580667,143.5779244,147.54,147.49,8.55584836]
[1746662580854,143.5779244,147.54,147.49,1.77576157]
[1746662581056,143.5779244,147.54,147.49,0.14216157]
[1746662582169,160.5224818,147.54,147.46,15.98]
[1746662582360,155.44964886,147.53,147.46,15.98]
[1746662582561,23.72559652,147.52,147.46,15.98]
[1746662582864,23.72559652,147.52,147.46,0.14216157]
[1746662583563,23.72559652,147.52,147.45,27.6336]
[1746662583780,23.72559652,147.52,147.46,26.0]
[1746662584260,23.72559652,147.52,147.46,0.14216157]
[1746662584463,23.72559652,147.52,147.45,27.6336]
[1746662584757,23.72559652,147.52,147.46,26.0]
[1746662584952,18.64964886,147.51,147.46,26.0]
[1746662585164,136.8,147.5,147.46,26.0]
[1746662585771,136.8,147.5,147.47,0.14216157]
[1746662586573,136.8,147.5,147.47,6.92284397]
[1746662586872,136.75826059,147.5,147.47,6.92284397]
[1746662587070,136.75826059,147.5,147.47,34.46964397]
[1746662587371,6.77848479,147.53,147.47,34.46964397]
[1746662588368,6.77782296,147.54,147.47,34.46964397]
[1746662589774,6.77323218,147.64,147.53,18.64964886]
[1746662590083,23.69507819,147.71,147.6,0.14216157]
[1746662590283,160.45333878,147.71,147.6,0.14216157]
[1746662590859,18.64964886,147.7,147.6,0.14216157]
[1746662591477,160.45333878,147.71,147.6,0.14216157]
[1746662591861,18.64964886,147.7,147.6,0.14216157]
[1746662593583,23.69828694,147.69,147.6,0.14216157]
[1746662594878,18.64964886,147.68,147.6,0.14216157]
[1746662595067,20.20214886,147.66,147.57,1.6003]
[1746662595383,46.20214886,147.66,147.57,1.6003]
[1746662595567,23.70470707,147.65,147.57,1.6003]
[1746662595875,23.70470707,147.65,147.58,0.14216157]
[1746662596083,136.75826059,147.64,147.55,22.6494]
[1746662596262,136.75826059,147.64,147.55,16.04]
[1746662596454,136.75826059,147.64,147.55,42.04]
[1746662596665,136.75826059,147.64,147.56,0.14216157]
[1746662597376,136.75826059,147.64,147.55,42.04]
[1746662597680,6.77369098,147.63,147.55,42.04]
[1746662597856,136.75826059,147.62,147.55,16.04]
[1746662598061,136.75826059,147.62,147.56,0.14216157]
[1746662599994,6.77460876,147.61,147.56,0.14216157]
[1746662601268,6.77460876,147.61,147.56,6.91886419]
[1746662601790,6.77460876,147.61,147.56,0.14216157]
[1746662602692,6.77460876,147.61,147.55,16.04]
[1746662603193,23.71113067,147.61,147.55,16.04]
[1746662603701,23.71113067,147.61,147.54,0.14216157]
[1746662604966,23.71113067,147.61,147.53,1.5157]
[1746662604967,155.40790945,147.6,147.53,1.5157]
[1746662605171,18.64964886,147.58,147.51,16.04]
[1746662606703,23.71755776,147.57,147.51,16.04]
[1746662606871,160.47581835,147.57,147.51,16.04]
[1746662608008,160.47581835,147.57,147.5,0.14216157]
[1746662610102,155.40790945,147.56,147.45,1.6117]
[1746662610301,18.64964886,147.54,147.45,1.6117]
[1746662610600,18.64964886,147.54,147.45,27.6117]
[1746662610804,18.64964886,147.54,147.46,0.14216157]
[1746662611703,23.72398833,147.53,147.46,0.14216157]
[1746662619208,6.77828238,147.53,147.46,6.92360101]
[1746662619683,6.77828238,147.53,147.5,0.14216157]
[1746662620812,6.77782296,147.54,147.5,0.14216157]
[1746662621353,143.53582209,147.55,147.5,0.14216157]
[1746662621631,6.777112,147.56,147.52,0.14216157]
[1746662621821,16.93774913,147.6,147.54,0.14216157]
[1746662621822,6.77552679,147.59,147.54,0.14216157]
[1746662622402,6.77552679,147.59,147.54,26.14216157]
[1746662623323,23.7095902,147.62,147.54,26.14216157]
[1746662623623,160.46785079,147.62,147.54,26.14216157]
[1746662623827,160.46785079,147.62,147.54,32.9198716]
[1746662625327,160.46785079,147.62,147.54,32.87813218]
[1746662626227,160.46785079,147.62,147.54,26.10042215]
[1746662627330,136.75826059,147.61,147.54,26.10042215]
[1746662627831,6.77506775,147.6,147.54,32.87817378]
[1746662628037,143.53307772,147.61,147.56,0.14216157]
[1746662630240,143.53307772,147.61,147.56,6.9189211]
[1746662630619,136.75826059,147.61,147.56,6.9189211]
[1746662630818,136.75826059,147.61,147.57,1.5881]
[1746662631014,6.77425813,147.62,147.58,0.14216157]
[1746662631227,6.77277345,147.65,147.58,0.14216157]
[1746662631428,23.70470707,147.65,147.58,0.14216157]
[1746662633319,23.60470707,147.65,147.58,26.14216157]
[1746662637136,6.67277345,147.65,147.58,32.9180321]
[1746662637337,143.53073247,147.66,147.59,16.0]
[1746662638845,143.53073247,147.66,147.59,22.77525952]
[1746662641834,143.53073247,147.66,147.59,28.22600116]
[1746662642751,143.53073247,147.66,147.6,6.91689707]
[1746662643425,143.53073247,147.66,147.6,10.26876893]
[1746662643827,143.53073247,147.66,147.59,16.0]
[1746662644427,160.46151941,147.66,147.59,16.0]
[1746662644630,136.75826059,147.65,147.59,16.0]
[1746662644828,23.70631264,147.64,147.59,16.0]
[1746662645049,23.70631264,147.64,147.58,26.0]
[1746662647051,23.70631264,147.64,147.58,32.77595601]
[1746662647348,6.77323218,147.64,147.58,32.77595601]
[1746662647574,6.77323218,147.64,147.59,0.14216157]
[1746662648649,16.93098523,147.66,147.59,32.91768541]
[1746662650557,16.93098523,147.66,147.59,26.14216157]
[1746662650947,23.69989165,147.68,147.59,32.91768499]
[1746662651148,136.75826059,147.67,147.59,32.91768499]
[1746662651354,136.75826059,147.67,147.59,26.14216157]
[1746662651848,136.75826059,147.67,147.58,0.14216157]
[1746662652053,155.40790945,147.66,147.57,1.5881]
[1746662653143,23.70470707,147.65,147.57,1.5881]
[1746662653338,136.75826059,147.64,147.57,0.14216157]
[1746662654267,23.70791844,147.63,147.56,26.0]
[1746662655446,23.70791844,147.63,147.56,32.77684633]
[1746662655639,6.77369098,147.63,147.57,0.14216157]
[1746662655957,143.53167247,147.64,147.6,26.0]
[1746662656159,6.77231477,147.66,147.6,27.6209]
[1746662656340,6.77231477,147.66,147.6,34.39584148]
[1746662658538,6.77231477,147.66,147.61,0.14216157]
[1746662658739,6.77231477,147.66,147.61,6.91668736]
[1746662659037,6.77231477,147.66,147.61,0.14216157]
[1746662659452,6.77231477,147.66,147.61,6.916706]
[1746662666363,6.77231477,147.66,147.61,0.14216157]
[1746662667868,6.77231477,147.66,147.61,6.916614]
[1746662669367,6.77231477,147.66,147.61,0.14216157]
[1746662669570,6.77231477,147.66,147.6,43.6609]
[1746662669778,6.77231477,147.66,147.6,42.04]
[1746662670091,136.75826059,147.65,147.6,16.04]
[1746662670256,136.75826059,147.65,147.56,24.4102448]
[1746662670458,136.75826059,147.65,147.57,26.0]
[1746662670952,136.75826059,147.65,147.58,0.14216157]
[1746662671271,23.70631264,147.64,147.58,0.14216157]
[1746662671457,160.46457323,147.64,147.57,26.0]
[1746662674872,143.53149277,147.64,147.58,0.14216157]
[1746662675669,16.92867488,147.68,147.6,0.14216157]
[1746662675973,16.92867488,147.68,147.6,26.14216157]
[1746662675974,136.75826059,147.67,147.6,26.14216157]
[1746662676760,6.77231477,147.66,147.6,26.14216157]
[1746662677071,6.77231477,147.66,147.6,6.9171274]
[1746662677872,6.77231477,147.66,147.57,0.14216157]
[1746662678053,136.75826059,147.65,147.57,26.14216157]
[1746662678777,6.77323218,147.64,147.57,26.14216157]
[1746662679181,23.70631264,147.64,147.57,26.14216157]
[1746662680585,138.34916059,147.63,147.51,11.20977843]
[1746662680781,136.75826059,147.62,147.51,24.36890624]
[1746662681086,136.75826059,147.62,147.54,26.0]
[1746662681884,23.71113067,147.61,147.54,26.0]
[1746662682300,136.75826059,147.6,147.51,17.5899]
[1746662682463,136.75826059,147.59,147.51,17.5899]
[1746662682663,136.75826059,147.59,147.52,26.0]
[1746662684094,6.7759859,147.58,147.52,26.0]
[1746662685191,23.71595066,147.58,147.52,26.0]
[1746662687295,23.71595066,147.58,147.49,3.31898439]
[1746662687296,1.5984,147.57,147.44,1.5362]
[1746662687471,136.75826059,147.56,147.44,22.99739874]
[1746662687791,136.75826059,147.56,147.45,18.64964886]
[1746662688298,23.72077261,147.55,147.46,6.78141294]
[1746662688593,23.72077261,147.55,147.48,0.14216157]
[1746662689880,23.72077261,147.55,147.48,26.14216157]
[1746662692579,23.72077261,147.55,147.48,26.0]
[1746662693302,136.75826059,147.54,147.48,26.0]
[1746662693877,6.77828238,147.53,147.48,26.0]
[1746662698005,143.53625855,147.54,147.49,0.14216157]
[1746662698504,136.75826059,147.54,147.49,1.79766157]
[1746662699309,6.77756309,147.55,147.49,1.79766157]
[1746662699708,6.77712111,147.56,147.49,1.79766157]
[1746662700215,6.77712111,147.56,147.51,0.14216157]
[1746662700383,143.53485112,147.57,147.51,26.14216157]
[1746662701411,6.77659053,147.57,147.53,26.0]
[1746662701625,23.71443456,147.59,147.53,26.0]
[1746662701785,6.77552679,147.59,147.54,0.14216157]
[1746662709322,143.53342683,147.6,147.54,6.91995646]
[1746662709502,136.75826059,147.6,147.56,0.14216157]
[1746662709822,6.77426563,147.62,147.57,26.0]
[1746662710724,6.77426563,147.62,147.57,32.77643225]
[1746662710926,6.77426563,147.62,147.57,26.0]
[1746662713824,6.77426563,147.62,147.58,26.0]
[1746662714002,23.70964024,147.62,147.57,26.0]
[1746662717331,23.70964024,147.62,147.56,0.14216157]
[1746662717538,23.70964024,147.62,147.55,26.0]
[1746662719041,6.77426563,147.62,147.56,0.14216157]
[1746662720649,6.77426563,147.62,147.57,26.0]
[1746662723930,23.70964024,147.62,147.56,0.14216157]
[1746662724109,18.64964886,147.61,147.55,26.0]
[1746662724817,23.71273712,147.6,147.55,26.0]
[1746662725807,6.77506775,147.6,147.55,26.0]
[1746662726834,23.70968386,147.62,147.55,26.0]
[1746662728035,23.70968386,147.62,147.55,32.77729171]
[1746662729242,143.53326758,147.61,147.55,32.77729171]
[1746662730538,136.75826059,147.61,147.56,0.14216157]
[1746662731133,7.9453,147.65,147.56,0.14216157]
[1746662731311,1.5552,147.65,147.58,0.14216157]
[1746662732732,8.32811706,147.65,147.59,6.77552679]
[1746662736322,6.77231477,147.66,147.59,6.77552679]
[1746662737329,6.77231477,147.66,147.6,0.14216157]
[1746662737517,143.53020892,147.67,147.6,0.14216157]
[1746662741340,160.45984933,147.67,147.6,0.14216157]
[1746662744749,160.45984933,147.67,147.59,26.14216157]
[1746662744918,18.64964886,147.66,147.57,1.5824]
[1746662745418,18.64964886,147.66,147.58,0.14216157]
[1746662745618,23.70470707,147.65,147.58,0.14216157]
[1746662746025,23.70470707,147.65,147.57,27.5824]
[1746662746335,18.64964886,147.64,147.56,16.02]
[1746662746550,136.75826059,147.63,147.56,16.02]
[1746662747844,23.70952445,147.62,147.56,16.02]
[1746662755550,23.70952445,147.62,147.56,0.14216157]
[1746662767459,23.70952445,147.62,147.55,26.0]
[1746662769976,155.40790945,147.61,147.53,17.71316157]
[1746662770278,136.75826059,147.6,147.53,17.571]
[1746662771572,6.77552679,147.59,147.53,17.571]
[1746662774074,6.77552679,147.59,147.53,24.34926955]
[1746662776565,6.77552679,147.59,147.53,17.571]
[1746662777362,6.77552679,147.59,147.53,24.34924253]
[1746662779785,6.77552679,147.59,147.53,8.36924253]
[1746662781782,23.71434378,147.59,147.52,26.0]
[1746662781953,49.71434378,147.59,147.51,0.14216157]
[1746662782156,155.40790945,147.58,147.5,15.98]
[1746662782372,155.40790945,147.58,147.49,1.6018]
[1746662782373,44.64964886,147.56,147.49,1.6018]
[1746662782955,23.72077261,147.55,147.49,1.6018]
[1746662783170,136.75826059,147.54,147.49,1.6018]
[1746662784185,6.77828238,147.53,147.49,1.6018]
[1746662786593,6.77828238,147.53,147.47,0.14216157]
[1746662788862,6.77828238,147.53,147.46,43.5164]
[1746662789779,23.72398833,147.53,147.46,43.5164]
[1746662790978,6.77920141,147.51,147.46,17.5164]
[1746662796687,6.77920141,147.51,147.46,1.5364]
[1746662796883,6.77920141,147.51,147.44,26.0]
[1746662797064,23.72720493,147.51,147.43,1.5136]
[1746662797266,23.73042239,147.49,147.43,1.5136]
[1746662797707,23.73042239,147.49,147.42,26.0]
[1746662799283,136.75826059,147.48,147.4,22.90641154]
[1746662799484,6.78104021,147.47,147.4,41.98]
[1746662799866,6.78104021,147.47,147.4,48.76417281]
[1746662800589,6.78104021,147.47,147.4,41.98]
[1746662801908,6.78104021,147.47,147.4,48.76420792]
[1746662802195,23.73364073,147.47,147.4,41.98]
[1746662802795,23.73364073,147.47,147.4,15.98]
[1746662807196,6.78195998,147.45,147.4,15.98]
[1746662808696,26.0,147.47,147.4,15.98]
[1746662810504,6.78150006,147.46,147.4,15.98]
[1746662814507,23.73525022,147.46,147.4,15.98]
[1746662814709,23.73525022,147.46,147.39,1.6313]
[1746662816505,23.73525022,147.46,147.38,26.0]
[1746662817393,18.64964886,147.45,147.38,26.0]
[1746662817811,23.73525022,147.46,147.38,26.0]
[1746662818502,23.73525022,147.46,147.38,32.78511981]
[1746662820106,6.78150006,147.46,147.39,0.14216157]
[1746662820687,6.78150006,147.46,147.4,1.5969]
[1746662822215,6.78150006,147.46,147.4,8.38115317]
[1746662823511,6.78150006,147.46,147.4,1.5969]
[1746662825114,6.78150006,147.46,147.4,8.38099314]
[1746662837751,6.78150006,147.46,147.4,1.5969]
[1746662837924,6.78150006,147.46,147.39,6.92670111]
[1746662846052,23.73220105,147.48,147.39,6.92670111]
[1746662846361,6.78058041,147.48,147.42,27.6427]
[1746662846532,6.78058041,147.48,147.43,0.14216157]
[1746662846856,6.77966101,147.5,147.43,0.14216157]
[1746662847061,6.77966101,147.5,147.43,26.14216157]
[1746662847444,6.77966101,147.5,147.43,26.0]
[1746662847641,6.77966101,147.5,147.42,1.6427]
[1746662847854,14.95786101,147.5,147.42,1.6427]
[1746662848660,18.64964886,147.49,147.42,1.6427]
[1746662848963,44.64964886,147.49,147.4,32.6435]
[1746662850059,44.64964886,147.49,147.4,39.42773209]
[1746662850768,23.73203145,147.48,147.4,39.42773209]
[1746662850955,23.73203145,147.48,147.4,32.6435]
[1746662853375,23.73203145,147.48,147.4,26.0]
[1746662855771,18.64964886,147.47,147.38,1.6515]
[1746662856750,23.73525022,147.46,147.38,1.6515]
[1746662860862,23.73525022,147.46,147.38,8.4366625]
[1746662862373,23.73525022,147.46,147.39,0.14216157]
[1746662863375,26.0,147.46,147.39,0.14216157]
[1746662866479,6.78195998,147.45,147.39,0.14216157]
[1746662866982,6.78195998,147.45,147.38,1.6515]
[1746662866983,23.73685994,147.45,147.38,1.6515]
[1746662872487,23.73685994,147.45,147.38,8.43654286]
[1746662873192,160.53685994,147.45,147.38,8.43654286]
[1746662873682,143.58195998,147.45,147.38,8.43654286]
[1746662880997,143.58195998,147.45,147.4,26.0]
[1746662886597,143.58195998,147.45,147.4,32.78409113]
[1746662886810,153.7502916,147.5,147.42,1.6519]
[1746662886979,153.7502916,147.5,147.44,26.0]
[1746662887178,6.78012068,147.49,147.44,26.0]
[1746662888007,6.78012068,147.49,147.44,32.78240302]
[1746662888388,6.78012068,147.49,147.44,26.0]
[1746662893114,6.78012068,147.49,147.44,32.78238853]
[1746662893797,136.8,147.5,147.45,0.14216157]
[1746662893798,143.57985409,147.5,147.45,0.14216157]
[1746662893999,6.77874186,147.52,147.45,0.14216157]
[1746662894530,6.77874186,147.52,147.47,0.14216157]
[1746662894697,6.77782296,147.54,147.47,1.68996157]
[1746662895790,6.77782296,147.54,147.47,8.47091193]
[1746662901518,23.72238036,147.54,147.47,1.5478]
[1746662901725,18.64964886,147.53,147.45,26.0]
[1746662901896,18.64964886,147.53,147.44,6.78235029]
[1746662902099,136.8,147.52,147.44,32.78235029]
[1746662902932,6.77920141,147.51,147.44,32.78235029]
[1746662907143,6.77920141,147.51,147.44,26.0]
[1746662907326,136.8,147.5,147.44,26.0]
[1746662909437,6.78012068,147.49,147.44,26.0]
[1746662911152,6.78012068,147.49,147.44,32.78239092]
[1746662917450,136.8,147.5,147.45,0.14216157]
[1746662917655,6.77828238,147.53,147.47,26.0]
[1746662918031,23.72398833,147.53,147.47,26.0]
[1746662918239,23.72398833,147.53,147.45,0.14216157]
[1746662918540,155.44964886,147.52,147.44,26.0]
[1746662918730,136.8,147.51,147.44,26.0]
[1746662919243,143.57941448,147.51,147.47,0.14216157]
[1746662919453,6.77828238,147.53,147.47,0.14216157]
[1746662919639,6.77828238,147.53,147.47,26.14216157]
[1746662925469,6.77828238,147.53,147.49,0.14216157]
[1746662927342,143.57802605,147.54,147.49,32.92209009]
[1746662929674,1.5379,147.58,147.49,32.92209009]
[1746662929871,138.3379,147.58,147.49,32.92209009]
[1746662930869,6.77644507,147.57,147.49,32.92209009]
[1746662931974,23.71755776,147.57,147.49,26.14216157]
[1746662932167,23.71755776,147.57,147.49,26.0]
[1746662932471,136.8,147.56,147.49,26.0]
[1746662933578,23.72077261,147.55,147.49,26.0]
[1746662933874,136.8,147.54,147.49,26.0]
[1746662935579,6.77828238,147.53,147.49,26.0]
[1746662936604,136.8,147.54,147.49,26.0]
[1746662936880,18.4787344,147.58,147.5,0.14216157]
[1746662937182,16.9408344,147.58,147.5,0.14216157]
[1746662937567,6.7759859,147.58,147.51,6.77920141]
[1746662937769,6.7759859,147.58,147.52,0.14216157]
[1746662938675,6.7759859,147.58,147.53,26.0]
[1746662941703,23.71595066,147.58,147.53,26.0]
[1746662945197,6.7759859,147.58,147.54,1.5471]
[1746662946504,16.93771776,147.6,147.54,1.5471]
[1746662949477,16.93771776,147.6,147.55,0.14216157]
[1746662951209,57.58027367,147.62,147.54,1.5471]
[1746662951384,136.8,147.61,147.54,1.5471]
[1746662952910,23.71273712,147.6,147.54,1.5471]
[1746662963525,6.77506775,147.6,147.54,1.5471]
[1746662963821,6.77506775,147.6,147.55,26.14216157]
[1746662964324,6.77414984,147.62,147.55,32.9194505]
[1746662965192,6.77369098,147.63,147.55,32.9194505]
[1746662965693,6.77369098,147.63,147.59,26.0]
[1746662966494,6.77323218,147.64,147.59,26.0]
[1746662967217,6.77323218,147.64,147.59,32.7754764]
[1746662968011,6.77323218,147.64,147.6,0.14216157]
[1746662968323,6.77323218,147.64,147.6,1.79306157]
[1746662968497,23.70167306,147.67,147.6,1.79306157]
[1746662968698,23.70167306,147.67,147.6,8.56808839]
[1746662968897,23.70167306,147.67,147.6,1.79306157]
[1746662969617,6.77185616,147.67,147.6,8.56807746]
[1746662969994,16.92403805,147.72,147.64,0.14216157]
[1746662970322,33.84323975,147.74,147.63,32.3547]
[1746662970617,18.64964886,147.73,147.63,26.0]
[1746662970823,136.8,147.72,147.63,26.0]
[1746662972321,136.8,147.72,147.65,26.0]
[1746662973021,23.69507819,147.71,147.65,26.0]
[1746662974134,23.69507819,147.71,147.62,26.14216157]
[1746662974708,51.29717819,147.71,147.62,0.14216157]
[1746662975007,23.69828694,147.69,147.61,41.94]
[1746662975212,160.49828694,147.69,147.61,41.94]
[1746662975723,160.49828694,147.69,147.61,48.71458419]
[1746662975938,160.49828694,147.69,147.61,41.94]
[1746662977124,155.44964886,147.68,147.61,41.94]
[1746662977319,136.8,147.67,147.61,15.94]
[1746662977505,136.8,147.66,147.57,22.71623831]
[1746662977703,136.8,147.66,147.58,26.0]
[1746662978434,6.77277345,147.65,147.58,0.14216157]
[1746662978645,6.77277345,147.65,147.58,32.91808513]
[1746662978831,23.70470707,147.65,147.58,26.14216157]
[1746662979233,23.70470707,147.65,147.58,32.9181439]
[1746662987227,23.70470707,147.65,147.58,26.14216157]
[1746662987427,23.70470707,147.65,147.58,32.91802145]
[1746662988259,6.77277345,147.65,147.58,32.91802145]
[1746662989251,143.57235102,147.66,147.58,49.85798621]
[1746662989451,143.57235102,147.66,147.59,7.8253]
[1746662990049,143.57235102,147.66,147.62,26.0]
[1746662990231,23.70103352,147.68,147.62,26.0]
[1746662996452,6.77139761,147.68,147.62,32.77403805]
[1746662996864,6.77139761,147.68,147.63,0.14216157]
[1746662998256,6.77139761,147.68,147.63,6.91577553]
[1746662998659,143.57113772,147.69,147.63,6.91577553]